bitfinex/quotes_SOLUSD_20250210
["timestamp","ask_amount","ask_price","bid_price","bid_amount"]
[1739221003215,2.44630724,201.36,201.35,4.9664]
[1739221004826,2.46630724,201.36,201.35,4.9664]
[1739221005701,2.52930724,201.36,201.35,4.9664]
[1739221007094,2.50930724,201.36,201.35,4.9664]
[1739221007321,1.0,201.32,201.31,4.9674]
[1739221008892,3.44630724,201.32,201.31,4.9674]
[1739221011120,3.44630724,201.32,201.3,4.9977]
[1739221011636,3.44630724,201.32,201.3,11.63546369]
[1739221011798,3.44630724,201.32,201.31,6.63776369]
[1739221012000,3.44630724,201.32,201.3,11.63546369]
[1739221013041,1.0,201.32,201.3,6.63776369]
[1739221015023,1.0,201.32,201.31,4.9674]
[1739221017208,1.0,201.32,201.28,19.05776369]
[1739221017410,1.0,201.3,201.29,4.9679]
[1739221017739,1.0,201.32,201.29,4.9679]
[1739221017892,0.063,201.36,201.31,6.63776369]
[1739221018093,0.063,201.36,201.35,6.63776369]
[1739221018293,1.063,201.36,201.35,6.63776369]
[1739221018498,1.063,201.36,201.34,6.63776369]
[1739221020307,1.063,201.36,201.35,4.9664]
[1739221021808,0.063,201.36,201.35,11.60416369]
[1739221023613,1.063,201.36,201.35,11.60416369]
[1739221024605,1.063,201.36,201.34,6.63776369]
[1739221024811,1.063,201.36,201.35,6.63776369]
[1739221025636,0.063,201.36,201.35,6.63776369]
[1739221025834,0.063,201.36,201.35,11.60416369]
[1739221026033,1.0,201.43,201.35,24.02026369]
[1739221026240,1.0,201.43,201.42,6.63776369]
[1739221028139,1.0,201.43,201.42,11.60246369]
[1739221029841,1.063,201.43,201.4,11.60276369]
[1739221030142,1.063,201.43,201.41,6.63776369]
[1739221030442,0.063,201.43,201.41,11.60266369]
[1739221030642,0.063,201.43,201.42,6.63776369]
[1739221031845,0.063,201.43,201.42,11.60246369]
[1739221033145,1.0,201.42,201.4,6.63776369]
[1739221033521,1.0,201.42,201.38,11.60346369]
[1739221034547,0.063,201.43,201.38,11.60346369]
[1739221034715,0.063,201.43,201.38,24.01776369]
[1739221038941,0.063,201.43,201.4,6.63776369]
[1739221040240,0.063,201.43,201.41,4.9649]
[1739221041650,0.063,201.43,201.42,6.63776369]
[1739221042319,0.063,201.43,201.42,11.60246369]
[1739221045426,0.063,201.43,201.42,4.9647]
[1739221047455,0.063,201.43,201.42,6.63776369]
[1739221049756,0.063,201.43,201.42,11.60246369]
[1739221055761,0.063,201.43,201.42,4.9647]
[1739221056150,0.063,201.43,201.39,12.4137]
[1739221056151,1.063,201.43,201.4,11.60296369]
[1739221056861,0.063,201.43,201.42,11.60246369]
[1739221060477,0.03890825,201.43,201.42,11.60246369]
[1739221072781,8.25e-06,201.43,201.42,11.60246369]
[1739221072966,8.25e-06,201.43,201.42,25.01431222]
[1739221077894,8.25e-06,201.43,201.42,25.04431222]
[1739221080956,8.25e-06,201.43,201.42,11.63246369]
[1739221084964,8.25e-06,201.43,201.42,11.60837193]
[1739221085162,8.25e-06,201.43,201.42,11.91047193]
[1739221093493,43.56122047,201.43,201.42,0.3321]
[1739221093691,13.41184853,201.42,201.37,0.03]
[1739221093999,8.63776369,201.38,201.37,0.03]
[1739221094195,22.04961222,201.38,201.37,0.03]
[1739221095397,8.63776369,201.38,201.37,0.03]
[1739221095896,9.56906634,201.38,201.37,0.03]
[1739221096998,8.63776369,201.38,201.37,0.03]
[1739221097308,9.5690676,201.38,201.37,0.03]
[1739221098111,8.63776369,201.38,201.37,0.03]
[1739221100305,1.0,201.39,201.37,6.66776369]
[1739221100512,1.0,201.4,201.38,6.63776369]
[1739221100712,1.0,201.41,201.39,6.63776369]
[1739221101005,1.0,201.41,201.4,6.63776369]
[1739221101979,1.0,201.41,201.4,11.60296369]
[1739221102700,1.0,201.42,201.4,11.60296369]
[1739221103011,1.0,201.42,201.41,6.63776369]
[1739221104095,1.0,201.42,201.41,11.60266369]
[1739221105188,1.0,201.42,201.41,4.9649]
[1739221108406,1.00000825,201.43,201.41,4.9649]
[1739221112114,2.00000825,201.43,201.41,4.9649]
[1739221113012,2.00000825,201.43,201.39,6.63776369]
[1739221113594,2.00000825,201.43,201.4,6.63776369]
[1739221115015,2.00000825,201.43,201.41,4.9649]
[1739221117009,1.0,201.4,201.37,0.03]
[1739221117207,0.93117925,201.39,201.37,0.03]
[1739221120018,1.0,201.38,201.37,0.03]
[1739221120209,1.93119861,201.38,201.37,0.03]
[1739221120918,1.0,201.38,201.37,0.03]
[1739221121225,1.0,201.38,201.37,6.66776369]
[1739221122008,2.0,201.4,201.37,6.66776369]
[1739221122627,1.0,201.38,201.37,0.03]
[1739221122791,1.0,201.38,201.37,6.66776369]
[1739221123191,2.0,201.4,201.37,11.63366369]
[1739221123622,2.0,201.4,201.37,4.9959]
[1739221124421,1.0,201.38,201.37,4.9959]
[1739221124734,1.00000825,201.43,201.37,24.04856369]
[1739221125026,1.00000825,201.43,201.41,6.63776369]
[1739221125223,1.0,201.41,201.39,6.63776369]
[1739221125424,1.0,201.42,201.4,6.63776369]
[1739221126433,1.0,201.42,201.4,11.60286369]
[1739221126798,1.0,201.42,201.4,4.9651]
[1739221129616,1.0,201.42,201.4,11.60286369]
[1739221130734,1.00000825,201.43,201.42,4.9647]
[1739221130931,1.00000825,201.43,201.42,11.60246369]
[1739221131138,1.00000825,201.43,201.41,11.60266369]
[1739221131821,1.00000825,201.43,201.4,11.60296369]
[1739221134950,1.00000825,201.43,201.4,11.60296369]
[1739221135235,0.5,201.42,201.4,11.60296369]
[1739221137225,0.5,201.42,201.4,11.63296369]
[1739221144246,0.5,201.42,201.4,6.66776369]
[1739221144458,1.0,201.41,201.4,0.03]
[1739221144949,41.10775889,201.41,201.4,0.03]
[1739221145140,42.04961222,201.38,201.37,0.03]
[1739221145449,42.98105752,201.38,201.37,0.03]
[1739221146451,47.94675752,201.38,201.37,0.03]
[1739221146866,42.98105752,201.38,201.37,0.03]
[1739221147070,22.9314453,201.38,201.37,0.03]
[1739221147238,34.53490899,201.38,201.37,0.03]
[1739221147642,29.56920899,201.38,201.37,0.03]
[1739221147862,22.9314453,201.38,201.37,0.03]
[1739221149959,2.9314453,201.38,201.37,0.03]
[1739221150464,2.0,201.38,201.37,0.03]
[1739221151137,2.0,201.38,201.37,0.3683]
[1739221151335,2.0,201.38,201.37,0.1183]
[1739221153568,1.0,201.38,201.37,0.1183]
[1739221153863,1.0,201.38,201.35,4.9346]
[1739221154435,1.0,201.36,201.34,4.9667]
[1739221154946,2.0,201.36,201.34,4.9667]
[1739221155141,1.0,201.36,201.34,4.9667]
[1739221155852,1.0,201.38,201.34,4.9667]
[1739221156047,1.0,201.38,201.35,6.63776369]
[1739221156359,1.25,201.4,201.36,4.9662]
[1739221156561,1.0,201.38,201.36,11.60396369]
[1739221156737,1.0,201.38,201.36,4.9662]
[1739221156934,1.0,201.36,201.34,6.63776369]
[1739221158148,1.0,201.39,201.35,6.63776369]
[1739221158470,1.0,201.39,201.37,4.9659]
[1739221158841,1.0,201.39,201.37,11.60366369]
[1739221160456,1.0,201.39,201.38,6.63776369]
[1739221160663,1.0,201.39,201.38,11.60346369]
[1739221161141,1.0,201.39,201.38,4.9657]
[1739221161961,1.0,201.39,201.38,11.60346369]
[1739221162154,1.0,201.39,201.38,4.9657]
[1739221163270,1.063,201.39,201.38,4.9657]
[1739221163650,1.063,201.39,201.38,6.63776369]
[1739221163855,0.063,201.39,201.38,6.63776369]
[1739221164168,0.0001,201.39,201.38,6.63776369]
[1739221165345,0.0001,201.39,201.38,12.86744647]
[1739221166354,0.0001,201.4,201.38,12.86744647]
[1739221166650,0.0001,201.4,201.39,6.63776369]
[1739221167491,0.0001,201.4,201.39,11.60316369]
[1739221167644,0.0001,201.4,201.39,25.01501222]
[1739221168047,8.25e-06,201.43,201.42,20.0]
[1739221168251,8.25e-06,201.43,201.42,26.63776369]
[1739221169673,8.25e-06,201.43,201.42,31.60246369]
[1739221171367,8.25e-06,201.43,201.42,24.9647]
[1739221171699,1.00000825,201.43,201.42,4.9647]
[1739221172496,8.25e-06,201.43,201.42,4.9647]
[1739221174898,8.25e-06,201.43,201.42,4.9947]
[1739221176298,8.25e-06,201.43,201.42,24.9947]
[1739221195396,8.25e-06,201.43,201.42,4.9947]
[1739221195711,1.00000825,201.43,201.42,4.9947]
[1739221195885,8.25e-06,201.43,201.42,4.9947]
[1739221198997,8.25e-06,201.43,201.42,0.03]
[1739221199326,1.00000825,201.43,201.42,0.03]
[1739221199886,1.00000825,201.43,201.42,6.66776369]
[1739221200206,8.25e-06,201.43,201.42,6.66776369]
[1739221200716,1.00000825,201.43,201.42,6.66776369]
[1739221201213,1.00000825,201.43,201.42,0.03]
[1739221203814,8.25e-06,201.43,201.42,0.03]
[1739221205418,1.00000825,201.43,201.42,0.03]
[1739221205838,8.63777194,201.43,201.42,0.03]
[1739221206035,22.98053844,201.43,201.42,0.03]
[1739221206338,9.56868991,201.43,201.42,0.03]
[1739221207038,2.93092622,201.43,201.42,0.03]
[1739221207635,9.56868991,201.43,201.42,0.03]
[1739221208323,22.98053844,201.43,201.42,0.03]
[1739221210620,23.98053844,201.43,201.42,0.03]
[1739221210925,1.0,201.31,201.29,6.63776369]
[1739221211444,1.0,201.33,201.3,6.63776369]
[1739221211745,1.0,201.33,201.32,6.63776369]
[1739221211923,1.0,201.31,201.3,6.63776369]
[1739221212317,1.0,201.31,201.29,6.63776369]
[1739221216453,1.0,201.31,201.26,20.0]
[1739221217451,1.0,201.27,201.26,26.63776369]
[1739221217743,0.97591627,201.27,201.26,26.63776369]
[1739221218745,0.97591627,201.27,201.25,6.63776369]
[1739221219052,0.97591627,201.25,201.22,6.63776369]
[1739221219851,0.97591627,201.25,201.23,6.63776369]
[1739221220235,0.97591627,201.23,201.22,6.63776369]
[1739221221050,0.97591627,201.25,201.22,6.63776369]
[1739221221240,0.97591627,201.23,201.21,20.03]
[1739221222336,0.97591627,201.23,201.22,6.63776369]
[1739221222528,0.97591627,201.23,201.22,6.13776369]
[1739221223861,0.97591627,201.23,201.21,6.66776369]
[1739221224046,1.97591627,201.23,201.21,0.03]
[1739221225124,21.97591627,201.23,201.21,0.03]
[1739221225328,7.56963411,201.22,201.21,0.03]
[1739221226632,20.98148264,201.22,201.21,0.03]
[1739221227365,7.56963411,201.22,201.21,0.03]
[1739221227650,15.3877648,201.2,201.19,0.03]
[1739221227868,22.02552849,201.2,201.19,0.03]
[1739221228158,0.97591627,201.11,201.08,6.63776369]
[1739221228334,0.97591627,201.07,201.06,0.05]
[1739221229046,1.97591627,201.07,201.06,0.05]
[1739221230438,2.90868466,201.07,201.06,0.05]
[1739221231238,1.97591627,201.07,201.06,0.05]
[1739221232358,1.97591627,201.09,201.06,0.05]
[1739221232558,1.97591627,201.09,201.07,10.40350168]
[1739221232750,1.97591627,201.07,201.06,0.05]
[1739221233552,2.9086435,201.07,201.06,0.05]
[1739221234059,2.9086435,201.07,201.06,0.08]
[1739221234276,13.31214518,201.07,201.06,0.08]
[1739221234751,2.9086435,201.07,201.06,0.08]
[1739221235154,1.97591627,201.07,201.06,5.0536]
[1739221236446,2.90855376,201.07,201.06,5.0536]
[1739221236762,1.97591627,201.07,201.06,5.0536]
[1739221237363,1.97591627,201.07,201.06,0.08]
[1739221237972,12.37941795,201.07,201.06,0.08]
[1739221238264,13.31223463,201.07,201.06,0.08]
[1739221238443,13.31223463,201.07,201.06,0.03]
[1739221239349,12.37941795,201.07,201.06,0.03]
[1739221239676,13.31219363,201.07,201.06,0.03]
[1739221241574,1.97591627,201.07,201.06,0.00591626]
[1739221241874,11.3548123,201.08,201.06,10.40941794]
[1739221242049,11.3548123,201.08,201.07,10.40350168]
[1739221242459,1.23e-05,201.08,201.07,10.40350168]
[1739221242667,1.23e-05,201.08,201.07,23.81535021]
[1739221242972,1.97591627,201.19,201.11,20.0]
[1739221243149,1.97591627,201.19,201.16,10.40350168]
[1739221243778,1.97591627,201.19,201.17,4.9709]
[1739221244155,1.97591627,201.19,201.17,15.37440168]
[1739221244355,0.97591627,201.19,201.17,15.37440168]
[1739221244950,1.97591627,201.21,201.18,10.40350168]
[1739221245176,1.97591627,201.21,201.18,15.37410168]
[1739221245549,0.97591627,201.21,201.18,15.37410168]
[1739221247077,0.97591627,201.21,201.18,4.9706]
[1739221247282,0.97591627,201.18,201.15,23.11180168]
[1739221247486,0.97591627,201.18,201.15,4.9713]
[1739221247958,0.97591627,201.15,201.12,15.37560168]
[1739221248368,0.97591627,201.15,201.13,10.40350168]
[1739221248567,0.97591627,201.15,201.14,10.40350168]
[1739221248892,1.97591627,201.17,201.14,10.40350168]
[1739221249067,1.97591627,201.17,201.15,10.40350168]
[1739221249473,1.97591627,201.17,201.15,15.37470168]
[1739221250663,1.97591627,201.19,201.16,10.40350168]
[1739221250869,0.97591627,201.21,201.18,10.40350168]
[1739221251071,1.0,201.2,201.19,10.40350168]
[1739221251672,1.0,201.2,201.19,15.37390168]
[1739221252488,1.0,201.2,201.19,4.9704]
[1739221252697,1.0,201.2,201.17,15.37420168]
[1739221252867,1.0,201.18,201.17,15.37420168]
[1739221254909,1.0,201.18,201.17,4.9707]
[1739221255201,0.97591627,201.17,201.15,24.9714]
[1739221255996,0.97591627,201.17,201.15,35.37490168]
[1739221257899,0.97591627,201.17,201.15,24.9714]
[1739221258590,0.97591627,201.17,201.15,35.37490168]
[1739221259082,0.97591627,201.17,201.15,24.9714]
[1739221260596,0.97591627,201.17,201.15,35.37490168]
[1739221260772,0.97591627,201.17,201.16,10.40350168]
[1739221261804,1.0,201.18,201.16,10.40350168]
[1739221261975,1.0,201.18,201.17,10.40350168]
[1739221263099,1.0,201.18,201.15,24.9714]
[1739221263100,1.0,201.18,201.16,10.40350168]
[1739221263296,0.97591627,201.17,201.15,15.37470168]
[1739221264198,0.97591627,201.17,201.15,4.9712]
[1739221264409,0.04743548,201.16,201.15,24.9712]
[1739221265897,0.04743548,201.16,201.11,7.737]
[1739221265898,0.04743548,201.16,201.14,10.40350168]
[1739221266211,0.97591627,201.11,201.1,4.9726]
[1739221266393,0.97591627,201.09,201.08,4.9729]
[1739221267284,0.97591627,201.09,201.06,10.40941794]
[1739221267610,0.97591627,201.07,201.06,15.38301794]
[1739221268100,0.97591627,201.09,201.08,20.0]
[1739221268878,0.97591627,201.09,201.08,20.03]
[1739221269081,0.97591627,201.09,201.08,0.03]
[1739221269682,0.97591627,201.09,201.08,20.03]
[1739221269883,0.97591627,201.09,201.08,25.0031]
[1739221272304,1.97591627,201.09,201.08,0.03]
[1739221273788,2.90850679,201.09,201.08,0.03]
[1739221274107,13.31200847,201.09,201.08,0.03]
[1739221276184,2.90850679,201.09,201.08,0.03]
[1739221279108,13.31200847,201.09,201.08,0.03]
[1739221279324,18.28480847,201.09,201.08,0.03]
[1739221281017,31.696657,201.09,201.08,0.03]
[1739221281919,18.28480847,201.09,201.08,0.03]
[1739221284711,31.696657,201.09,201.08,0.03]
[1739221285211,35.60848289,201.09,201.08,0.03]
[1739221285820,1.97591627,201.01,201.0,0.25]
[1739221286332,13.31246615,201.01,201.0,0.25]
[1739221287651,31.79669325,201.01,201.0,0.25]
[1739221287840,31.79669325,201.01,200.92,10.15350168]
[1739221287841,0.97591627,200.93,200.92,10.15350168]
[1739221288044,0.97591627,200.92,200.89,10.40350168]
[1739221288222,0.97591627,200.92,200.91,10.40350168]
[1739221288740,1.0,200.93,200.91,10.40350168]
[1739221288916,0.97591627,200.94,200.92,10.40350168]
[1739221289350,0.97591627,200.94,200.86,15.38200168]
[1739221289351,1.97591627,200.92,200.9,10.40350168]
[1739221289526,1.97591627,200.92,200.9,15.38100168]
[1739221289717,0.97591627,200.92,200.9,4.9775]
[1739221289917,0.97591627,200.9,200.89,10.40350168]
[1739221290217,0.97591627,200.9,200.89,4.9778]
[1739221290430,0.97591627,200.9,200.89,15.38130168]
[1739221292337,1.97591627,200.92,200.89,15.38130168]
[1739221292539,21.2375814,200.96,200.91,10.40350168]
[1739221292732,21.2375814,200.96,200.95,10.40350168]
[1739221293545,1.0,200.95,200.94,10.40350168]
[1739221293751,21.2375814,200.96,200.94,10.40350168]
[1739221293951,20.26166513,200.96,200.95,10.40350168]
[1739221294156,6.513e-05,200.96,200.95,10.40350168]
[1739221296048,6.513e-05,200.96,200.95,15.37980168]
[1739221297754,0.09757857,201.01,200.98,20.0]
[1739221297927,0.09757857,201.01,201.0,10.40350168]
[1739221298344,7.857e-05,201.01,201.0,18.50100168]
[1739221300241,7.857e-05,201.01,201.0,23.47610168]
[1739221301041,5.413e-05,201.02,201.0,36.88795021]
[1739221301248,2.75e-05,201.04,201.03,20.0]
[1739221301454,2.75e-05,201.04,201.03,30.40350168]
[1739221302327,2.75e-05,201.04,201.03,35.23160168]
[1739221302526,0.08173608,201.06,201.04,13.41184853]
[1739221302727,0.01060243,201.06,201.05,10.40350168]
[1739221302954,5.902e-05,201.07,201.05,23.81535021]
[1739221303142,5.902e-05,201.07,201.06,10.40350168]
[1739221304563,5.902e-05,201.07,201.06,15.37710168]
[1739221305936,0.97597529,201.07,201.06,15.37710168]
[1739221306740,5.902e-05,201.07,201.06,15.37710168]
[1739221307538,0.1088084,201.07,201.06,15.37710168]
[1739221307943,0.0488084,201.07,201.06,15.37710168]
[1739221309153,1.02472467,201.07,201.06,15.37710168]
[1739221310064,0.0488084,201.07,201.06,15.37710168]
[1739221315771,1.0488084,201.07,201.06,15.37710168]
[1739221315972,0.0488084,201.07,201.06,15.37710168]
[1739221316967,8.4e-06,201.07,201.06,15.37710168]
[1739221325763,8.4e-06,201.07,201.06,31.62764059]
[1739221327701,0.09702034,201.07,201.06,31.62764059]
[1739221328675,3.267e-05,201.09,201.07,13.41184853]
[1739221328874,3.267e-05,201.09,201.08,33.27020295]
[1739221329976,3.267e-05,201.09,201.08,11.62714059]
[1739221334079,9.357e-05,201.1,201.08,53.24330295]
[1739221334268,0.09077431,201.13,201.12,20.0]
[1739221334585,0.09077431,201.13,201.12,6.65404059]
[1739221335397,0.09077431,201.13,201.12,31.62614059]
[1739221336185,1.06669058,201.13,201.12,31.62614059]
[1739221336370,2.06669058,201.13,201.11,4.9723]
[1739221337265,2.06669058,201.13,201.11,6.65404059]
[1739221337883,2.06669058,201.13,201.1,6.65404059]
[1739221339490,0.97591627,201.11,201.1,11.62664059]
[1739221342391,1.97591627,201.11,201.1,11.62664059]
[1739221342767,2.06669058,201.13,201.1,11.62664059]
[1739221342985,2.06669058,201.13,201.12,6.65404059]
[1739221343896,0.09077431,201.13,201.12,6.65404059]
[1739221344280,0.09077431,201.13,201.12,11.62614059]
[1739221344916,7.431e-05,201.13,201.12,25.03798912]
[1739221346303,7.488e-05,201.14,201.13,13.41184853]
[1739221346609,7.488e-05,201.14,201.13,20.06588912]
[1739221347496,6.668e-05,201.14,201.13,20.06588912]
[1739221348717,7.117e-05,201.15,201.14,20.06588912]
[1739221349599,6.715e-05,201.16,201.14,20.06588912]
[1739221349802,0.08635809,201.18,201.15,6.65404059]
[1739221350110,0.08635809,201.18,201.17,20.06588912]
[1739221350312,0.08635809,201.18,201.17,40.06588912]
[1739221350814,0.08635809,201.18,201.17,45.03678912]
[1739221351605,5.809e-05,201.18,201.17,45.03678912]
[1739221351815,5.809e-05,201.18,201.17,71.65295148]
[1739221352110,5.809e-05,201.18,201.17,45.03678912]
[1739221352309,5.809e-05,201.18,201.17,71.65295148]
[1739221353015,5.809e-05,201.18,201.17,45.03678912]
[1739221354112,5.809e-05,201.18,201.17,45.06678912]
[1739221354308,5.809e-05,201.18,201.17,31.65494059]
[1739221354309,0.06305809,201.18,201.17,31.65494059]
[1739221355613,1.03897436,201.18,201.17,0.03]
[1739221355821,2.03897436,201.18,201.17,0.03]
[1739221358914,13.66361495,201.18,201.17,0.03]
[1739221360814,2.03897436,201.18,201.17,0.03]
[1739221363291,8.69301495,201.18,201.17,0.03]
[1739221364316,13.66361495,201.18,201.17,0.03]
[1739221367522,13.76718343,201.18,201.17,0.03]
[1739221368721,13.76712534,201.18,201.17,0.03]
[1739221371518,13.76712534,201.18,201.09,6.18404059]
[1739221371726,7.58632466,201.17,201.09,6.65404059]
[1739221372223,1.0,201.12,201.09,6.65404059]
[1739221373023,1.0,201.12,201.1,4.9726]
[1739221373329,0.97588985,201.12,201.1,4.9726]
[1739221375315,0.97591627,201.11,201.1,4.9726]
[1739221375620,0.97591627,201.09,201.08,11.62694059]
[1739221377415,0.97591627,201.09,201.08,4.9729]
[1739221377611,0.97591627,201.09,201.08,26.65404059]
[1739221378123,0.97591627,201.09,201.07,6.65404059]
[1739221378317,0.97591627,201.07,201.06,5.0036]
[1739221378927,0.97591627,201.07,201.06,0.03]
[1739221379432,1.90854792,201.07,201.06,0.03]
[1739221379614,0.97591627,201.07,201.06,0.03]
[1739221380411,0.97591627,201.09,201.06,6.68404059]
[1739221380613,0.97591627,201.09,201.08,6.65404059]
[1739221381509,0.97591627,201.09,201.08,6.15404059]
[1739221381915,0.97591627,201.09,201.08,11.12714059]
[1739221382123,0.97591627,201.09,201.08,4.9731]
[1739221382325,1.95180612,201.07,201.06,5.0035]
[1739221384029,1.95180612,201.07,201.06,0.03]
[1739221384238,1.95180612,201.07,201.06,6.68404059]
[1739221386020,1.95180612,201.07,201.06,0.03]
[1739221388622,1.95180612,201.07,201.06,6.68404059]
[1739221388939,1.95180612,201.07,201.06,0.03]
[1739221389650,1.95180612,201.07,201.06,6.68404059]
[1739221390051,1.95180612,201.07,201.06,0.03]
[1739221393352,2.88442934,201.07,201.06,0.03]
[1739221394122,14.51176993,201.07,201.06,0.03]
[1739221395044,9.53846993,201.07,201.06,0.03]
[1739221396144,2.88442934,201.07,201.06,0.03]
[1739221396548,9.53846993,201.07,201.06,0.03]
[1739221396850,2.88442934,201.07,201.06,0.00588984]
[1739221397853,1.95180612,201.07,201.06,0.00588984]
[1739221399673,1.95180612,201.07,201.06,6.65993043]
[1739221400149,0.97588985,201.07,201.06,6.65993043]
[1739221400350,1.95180612,201.07,201.06,6.65993043]
[1739221400757,2.01480612,201.09,201.06,11.63353043]
[1739221400947,1.03888985,201.09,201.08,6.65404059]
[1739221401454,0.063,201.09,201.08,6.65404059]
[1739221402159,0.0001,201.09,201.08,20.06588912]
[1739221402332,0.97591627,201.15,201.11,20.0]
[1739221402535,0.97591627,201.17,201.13,6.65404059]
[1739221403356,0.97591627,201.17,201.13,11.62594059]
[1739221403548,0.063,201.18,201.13,11.62594059]
[1739221403750,0.0001,201.18,201.17,21.6182]
[1739221403968,0.0001,201.18,201.17,41.68408912]
[1739221404843,0.0001,201.18,201.17,46.65498912]
[1739221405353,0.0001,201.18,201.17,33.24314059]
[1739221405849,0.0001,201.18,201.17,36.97734789]
[1739221410555,0.97591627,201.16,201.15,10.38824789]
[1739221410747,0.97588985,201.15,201.13,10.38824789]
[1739221413175,0.97588985,201.15,201.13,15.36004789]
[1739221413675,0.97591627,201.14,201.13,10.38824789]
[1739221413965,0.97591627,201.12,201.1,15.36064789]
[1739221416862,0.97591627,201.12,201.09,30.38824789]
[1739221417169,0.97591627,201.12,201.1,10.38824789]
[1739221417553,0.97591627,201.12,201.09,30.38824789]
[1739221417759,0.97591627,201.1,201.09,30.38824789]
[1739221417952,0.97591627,201.1,201.09,20.0]
[1739221418972,0.97591627,201.1,201.09,24.9728]
[1739221419149,0.97591627,201.1,201.09,4.9728]
[1739221419477,0.97591627,201.1,201.09,15.36104789]
[1739221419657,0.97591627,201.1,201.09,4.9728]
[1739221420984,0.97591627,201.08,201.07,35.36154789]
[1739221421664,1.95180612,201.08,201.07,35.36154789]
[1739221421850,1.95180612,201.08,201.07,24.9733]
[1739221423062,1.95180612,201.08,201.07,35.36154789]
[1739221425771,1.95180612,201.08,201.07,31.6287934]
[1739221426165,1.95180612,201.08,201.07,31.6587934]
[1739221426654,0.97588985,201.08,201.07,31.6587934]
[1739221428872,1.95180612,201.08,201.07,20.03]
[1739221432774,1.95180612,201.08,201.07,5.0033]
[1739221437469,1.95180612,201.08,201.07,20.03]
[1739221439672,1.95180612,201.08,201.07,25.0033]
[1739221440693,0.97588985,201.08,201.07,25.0033]
[1739221440899,1.95180612,201.1,201.07,38.41514853]
[1739221441189,1.95180612,201.12,201.08,13.41184853]
[1739221441689,1.95180612,201.12,201.09,4.9728]
[1739221442097,1.95180612,201.12,201.11,6.6554934]
[1739221442984,1.95180612,201.12,201.11,11.6278934]
[1739221443489,0.97588985,201.12,201.11,11.6278934]
[1739221443698,1.95180612,201.14,201.11,11.6278934]
[1739221443872,1.95180612,201.14,201.13,6.6554934]
[1739221444573,1.95180612,201.14,201.12,6.6554934]
[1739221444975,1.95180612,201.14,201.13,11.6273934]
[1739221445276,0.063,201.15,201.13,11.6273934]
[1739221445477,0.063,201.15,201.14,6.6554934]
[1739221446690,0.063,201.15,201.14,11.6270934]
[1739221448889,0.063,201.15,201.14,25.03894193]
[1739221454197,0.97598985,201.18,201.17,26.6554934]
[1739221456779,0.97598985,201.18,201.17,31.6263934]
[1739221458176,0.97598985,201.18,201.17,45.03824193]
[1739221458381,0.063,201.19,201.18,13.41184853]
[1739221458682,0.063,201.19,201.18,20.06734193]
[1739221459203,0.97591627,201.23,201.21,20.0]
[1739221459407,0.97591627,201.25,201.22,6.6554934]
[1739221459591,0.97591627,201.25,201.24,6.6554934]
[1739221461303,0.97591627,201.25,201.24,11.6245934]
[1739221466316,0.063,201.27,201.22,6.6554934]
[1739221466317,0.97591627,201.23,201.22,6.6554934]
[1739221467827,0.97591627,201.23,201.22,11.6250934]
[1739221472115,0.97591627,201.23,201.19,4.9702]
[1739221472312,0.97591627,201.2,201.19,4.9702]
[1739221475346,0.97591627,201.2,201.19,20.0]
[1739221477316,0.97591627,201.2,201.19,26.6554934]
[1739221477517,0.97591627,201.2,201.19,31.6258934]
[1739221479117,0.97591627,201.2,201.19,24.9704]
[1739221479621,0.97588985,201.19,201.18,4.9706]
[1739221483133,0.97588985,201.19,201.18,11.6260934]
[1739221483334,0.97588985,201.21,201.18,11.6260934]
[1739221483638,0.97591627,201.22,201.2,6.6554934]
[1739221483814,0.97591627,201.22,201.21,6.6554934]
[1739221485733,1.03888985,201.23,201.21,25.03724193]
[1739221485917,0.063,201.23,201.22,6.6554934]
[1739221486116,0.063,201.23,201.22,20.06734193]
[1739221487724,1.03888985,201.23,201.22,25.03694193]
[1739221491833,0.063,201.23,201.22,25.03694193]
[1739221495258,1.03888985,201.23,201.22,25.03694193]
[1739221496041,0.063,201.23,201.22,25.03694193]
[1739221496265,1.03888985,201.23,201.22,25.03694193]
[1739221504571,0.97591627,201.21,201.2,11.6253934]
[1739221504868,1.95180612,201.21,201.2,4.9699]
[1739221505450,1.95180612,201.21,201.2,11.6253934]
[1739221505743,1.03888985,201.23,201.2,11.6253934]